[Event "44th Chess Olympiad Women 2022"]
[Site "Chennai"]
[Date "2022.07.31"]
[Round "3.5"]
[White "Gueci, Tea"]
[Black "Milliet, Sophie"]
[Result "1/2-1/2"]
[WhiteElo "2254"]
[BlackElo "2396"]
[Annotator "RC"]
[PlyCount "124"]
[EventDate "2022.??.??"]
[TimeControl "60"]

1. e4 {[%emt 0:00:03]} e5 {[%emt 0:00:05]} 2. Nf3 {[%emt 0:00:04]} Nc6 {
[%emt 0:00:04]} 3. Bb5 {[%emt 0:00:06]} a6 {[%emt 0:00:04]} 4. Ba4 {[%emt 0:00:
00]} Nf6 {[%emt 0:00:04]} 5. d3 {[%emt 0:00:09]} b5 {[%emt 0:02:20]} 6. Bb3 {
[%emt 0:00:09]} Bc5 {[%emt 0:00:11]} 7. c3 {[%emt 0:00:57]} d6 {[%emt 0:07:18]}
8. O-O {[%emt 0:01:18]} h6 {[%emt 0:00:36]} 9. Re1 {[%emt 0:01:25]} O-O {
[%emt 0:00:31]} 10. h3 {[%emt 0:01:14]} Re8 {[%emt 0:04:20]} 11. Nbd2 {[%emt 0:
00:00]} Bb6 {[%emt 0:00:21]} 12. Nf1 {[%emt 0:02:09]} Be6 {[%emt 0:00:13]} 13.
Ng3 {[%emt 0:17:25]} d5 {[%emt 0:02:40]} 14. Qe2 {[%emt 0:13:38]} d4 {[%emt 0:
00:00]} 15. Bxe6 {[%emt 0:03:12]} Rxe6 {[%emt 0:03:23]} 16. Nf5 {[%emt 0:02:28]
} Qd7 {[%emt 0:12:01]} 17. Rd1 {[%emt 0:09:10]} Bc5 {[%emt 0:09:16]} 18. Bd2 {
[%emt 0:03:31]} Bf8 {[%emt 0:01:01]} 19. Rac1 {[%emt 0:05:51]} Kh7 {[%emt 0:00:
00]} 20. cxd4 {[%emt 0:03:55]} Nxd4 {[%emt 0:01:08]} 21. N3xd4 {[%emt 0:03:59]}
exd4 {[%emt 0:00:04]} 22. f4 {[%emt 0:02:47]} c5 {[%emt 0:01:17]} 23. b3 {
[%emt 0:02:20]} Rc8 {[%emt 0:04:21]} 24. e5 {[%emt 0:00:56]} Nd5 {[%emt 0:00:
00]} 25. Qe4 {[%emt 0:08:07]} Kg8 {[%emt 0:00:22]} 26. Re1 {[%emt 0:04:28]} b4
{[%emt 0:05:31]} 27. Rc2 {[%emt 0:03:01]} Nc3 {[%emt 0:04:06]} 28. Qf3 {
[%emt 0:01:03]} Rd8 {[%emt 0:01:44]} 29. Ng3 {[%emt 0:00:36]} Qd5 {[%emt 0:00:
00]} 30. Ne4 {[%emt 0:01:34]} a5 {[%emt 0:00:50]} 31. Bc1 {[%emt 0:01:19]} a4 {
[%emt 0:00:31]} 32. Nd2 {[%emt 0:00:54]} Qxf3 {[%emt 0:00:42]} 33. Nxf3 {
[%emt 0:00:31]} axb3 {[%emt 0:00:26]} 34. axb3 {[%emt 0:00:06]} Ra6 {[%emt 0:
00:00]} 35. f5 {[%emt 0:02:48]} Rda8 {[%emt 0:00:07]} 36. Bb2 {[%emt 0:02:07]}
Be7 {[%emt 0:00:58]} 37. Nd2 {[%emt 0:00:46]} Ra2 {[%emt 0:00:41]} 38. Nc4 {
[%emt 0:01:12]} Bh4 {[%emt 0:00:58]} 39. Rf1 {[%emt 0:01:41]} Bg5 {[%emt 0:00:
00]} 40. g3 {[%emt 0:00:44]} h5 {[%emt 0:00:48]} 41. Rg2 {[%emt 0:03:00]} Nd5 {
[%emt 0:05:52]} 42. e6 {[%emt 0:09:20]} fxe6 {[%emt 0:12:41]} 43. fxe6 {
[%emt 0:00:17]} Ne3 {[%emt 0:00:15]} 44. Nxe3 {[%emt 0:01:57]} Bxe3+ {[%emt 0:
00:00]} 45. Kh2 {[%emt 0:01:20]} Re8 {[%emt 0:05:01]} 46. Rf5 {[%emt 0:00:40]}
Rxe6 {[%emt 0:00:14]} 47. Rxc5 {[%emt 0:01:51]} h4 {[%emt 0:01:07]} 48. Rcc2 {
[%emt 0:00:58]} Rf6 {[%emt 0:04:05]} 49. gxh4 {[%emt 0:04:01]} Rf1 {[%emt 0:00:
00]} 50. Rge2 {[%emt 0:03:23]} Rd1 {[%emt 0:00:28]} 51. h5 {[%emt 0:06:46]}
Rxd3 {[%emt 0:00:35]} 52. Rg2 {[%emt 0:02:20]} Rd1 {[%emt 0:06:14]} 53. h4 {
[%emt 0:00:37]} Ra5 {[%emt 0:00:46]} 54. Rc4 {[%emt 0:00:41]} Rxh5 {[%emt 0:00:
00]} 55. Rxb4 {[%emt 0:00:22]} Rxh4+ {[%emt 0:00:35]} 56. Kg3 {[%emt 0:00:05]}
Rh6 {[%emt 0:00:38]} 57. Kf3 {[%emt 0:00:33]} Rf6+ {[%emt 0:00:29]} 58. Ke4 {
[%emt 0:00:17]} Rf4+ {[%emt 0:00:31]} 59. Kd5 {[%emt 0:00:19]} Rf5+ {[%emt 0:
00:00]} 60. Ke4 {[%emt 0:00:13]} Rf4+ {[%emt 0:00:23]} 61. Kd5 {[%emt 0:00:03]}
Rf5+ {[%emt 0:00:39]} 62. Ke4 {[%emt 0:00:52]} Rf4+ {[%emt 0:00:24]} 1/2-1/2

[Event "44th Chess Olympiad Women 2022"]
[Site "Chennai"]
[Date "2022.07.31"]
[Round "3.5"]
[White "Guichard, Pauline"]
[Black "Zimina, Olga"]
[Result "1-0"]
[WhiteElo "2379"]
[BlackElo "2340"]
[Annotator "RC"]
[PlyCount "57"]
[EventDate "2022.??.??"]
[TimeControl "60"]

1. d4 {[%emt 0:00:04]} d5 {[%emt 0:00:07]} 2. c4 {[%emt 0:00:08]} c6 {[%emt 0:
00:00]} 3. cxd5 {[%emt 0:00:05]} cxd5 {[%emt 0:00:05]} 4. Bf4 {[%emt 0:00:05]}
Nc6 {[%emt 0:00:16]} 5. e3 {[%emt 0:00:07]} Nf6 {[%emt 0:00:18]} 6. Nc3 {
[%emt 0:00:10]} Bg4 {[%emt 0:01:19]} 7. f3 {[%emt 0:00:09]} Bf5 {[%emt 0:01:47]
} 8. g4 {[%emt 0:00:33]} Bg6 {[%emt 0:11:38]} 9. h4 {[%emt 0:00:12]} h6 {
[%emt 0:01:25]} 10. Qb3 {[%emt 0:00:40]} Qd7 {[%emt 0:06:49]} 11. Bb5 {[%emt 0:
00:00]} e6 {[%emt 0:10:07]} 12. Rc1 {[%emt 0:01:54]} Bd6 {[%emt 0:08:33]} 13.
Nge2 {[%emt 0:05:33]} Rc8 {[%emt 0:00:42]} 14. Na4 {[%emt 0:08:00]} O-O {
[%emt 0:08:43]} 15. Nc5 {[%emt 0:04:23]} Bxc5 {[%emt 0:00:46]} 16. Rxc5 {
[%emt 0:00:18]} a6 {[%emt 0:00:43]} 17. Bxc6 {[%emt 0:14:04]} Rxc6 {[%emt 0:00:
00]} 18. Rxc6 {[%emt 0:03:21]} Qxc6 {[%emt 0:00:32]} 19. Kf2 {[%emt 0:00:52]}
Rc8 {[%emt 0:00:50]} 20. h5 {[%emt 0:06:49]} Bc2 {[%emt 0:00:26]} 21. Qb4 {
[%emt 0:00:42]} Bd3 {[%emt 0:01:36]} 22. Nc3 {[%emt 0:06:12]} b5 {[%emt 0:00:
00]} 23. g5 {[%emt 0:03:54]} hxg5 {[%emt 0:01:32]} 24. Bxg5 {[%emt 0:00:05]}
Nh7 {[%emt 0:09:36]} 25. Bf4 {[%emt 0:01:05]} Qc4 {[%emt 0:00:51]} 26. Qe7 {
[%emt 0:03:00]} b4 {[%emt 0:01:40]} 27. Rg1 {[%emt 0:03:42]} bxc3 {[%emt 0:00:
00]} 28. Be5 {[%emt 0:01:06]} g5 {[%emt 0:02:34]} 29. hxg6 {[%emt 0:01:16]} 1-0

[Event "44th Chess Olympiad Women 2022"]
[Site "Chennai"]
[Date "2022.07.31"]
[Round "3.5"]
[White "Savina, Anastasia"]
[Black "Raccanello, Marianna"]
[Result "1-0"]
[WhiteElo "2377"]
[BlackElo "2067"]
[Annotator "RC"]
[PlyCount "63"]
[EventDate "2022.??.??"]
[TimeControl "60"]

1. d4 {[%emt 0:00:09]} Nf6 {[%emt 0:00:07]} 2. c4 {[%emt 0:00:05]} e6 {[%emt 0:
00:00]} 3. Nc3 {[%emt 0:00:55]} Bb4 {[%emt 0:00:06]} 4. e3 {[%emt 0:01:20]} O-O
{[%emt 0:00:14]} 5. Bd2 {[%emt 0:01:51]} d5 {[%emt 0:00:26]} 6. Nf3 {[%emt 0:
00:00]} b6 {[%emt 0:00:36]} 7. cxd5 {[%emt 0:00:12]} exd5 {[%emt 0:00:09]} 8.
Rc1 {[%emt 0:00:21]} Bb7 {[%emt 0:03:58]} 9. Bd3 {[%emt 0:00:14]} a6 {[%emt 0:
00:00]} 10. Ne5 {[%emt 0:01:08]} Bd6 {[%emt 0:05:31]} 11. f4 {[%emt 0:01:30]}
Nbd7 {[%emt 0:07:35]} 12. O-O {[%emt 0:01:21]} c5 {[%emt 0:00:11]} 13. Be1 {
[%emt 0:12:17]} Ne4 {[%emt 0:12:28]} 14. Nxe4 {[%emt 0:12:11]} dxe4 {[%emt 0:
00:00]} 15. Bc4 {[%emt 0:00:46]} cxd4 {[%emt 0:31:22]} 16. Nxd7 {[%emt 0:08:10]
} Qxd7 {[%emt 0:00:28]} 17. Qxd4 {[%emt 0:00:37]} Rfd8 {[%emt 0:06:07]} 18. Bc3
{[%emt 0:05:31]} Bf8 {[%emt 0:00:22]} 19. Qxb6 {[%emt 0:00:31]} Rac8 {[%emt 0:
00:00]} 20. Bd4 {[%emt 0:12:04]} Rc6 {[%emt 0:01:44]} 21. Qa5 {[%emt 0:03:57]}
Rdc8 {[%emt 0:00:59]} 22. b3 {[%emt 0:00:55]} Be7 {[%emt 0:11:08]} 23. Rcd1 {
[%emt 0:05:27]} Qg4 {[%emt 0:00:40]} 24. h3 {[%emt 0:03:38]} Qg3 {[%emt 0:00:
00]} 25. Qf5 {[%emt 0:03:29]} Bf6 {[%emt 0:05:35]} 26. Bxf6 {[%emt 0:06:26]}
Qxe3+ {[%emt 0:02:09]} 27. Kh2 {[%emt 0:00:59]} gxf6 {[%emt 0:00:06]} 28. Rd7 {
[%emt 0:01:25]} R6c7 {[%emt 0:03:30]} 29. Bxf7+ {[%emt 0:01:39]} Kf8 {[%emt 0:
00:00]} 30. Be6 {[%emt 0:04:42]} Qc3 {[%emt 0:00:46]} 31. Qxh7 {[%emt 0:01:32]}
Rxd7 {[%emt 0:00:29]} 32. Qg8+ {[%emt 0:00:42]} 1-0

[Event "44th Chess Olympiad Women 2022"]
[Site "Chennai"]
[Date "2022.07.31"]
[Round "3.6"]
[White "Avramidou, Anastasia"]
[Black "Balajayeva, Khanim"]
[Result "1/2-1/2"]
[WhiteElo "2274"]
[BlackElo "2344"]
[Annotator "RC"]
[PlyCount "62"]
[EventDate "2022.??.??"]
[TimeControl "60"]

1. d4 {[%emt 0:00:30]} d5 {[%emt 0:00:30]} 2. c4 {[%emt 0:00:30]} dxc4 {
[%emt 0:00:30]} 3. Nf3 {[%emt 0:00:30]} Nf6 {[%emt 0:00:30]} 4. e3 {[%emt 0:00:
00]} e6 {[%emt 0:00:30]} 5. Bxc4 {[%emt 0:00:30]} c5 {[%emt 0:00:30]} 6. O-O {
[%emt 0:00:30]} a6 {[%emt 0:00:30]} 7. Re1 {[%emt 0:00:30]} Nc6 {[%emt 0:00:30]
} 8. Nc3 {[%emt 0:00:30]} b5 {[%emt 0:00:30]} 9. Bd3 {[%emt 0:00:30]} Bb7 {
[%emt 0:00:30]} 10. a4 {[%emt 0:00:30]} b4 {[%emt 0:00:30]} 11. Ne4 {[%emt 0:
00:00]} Na5 {[%emt 0:00:30]} 12. Nxf6+ {[%emt 0:00:30]} Qxf6 {[%emt 0:00:30]}
13. e4 {[%emt 0:00:30]} Qd8 {[%emt 0:00:30]} 14. Bg5 {[%emt 0:00:30]} Be7 {
[%emt 0:00:30]} 15. Bxe7 {[%emt 0:00:30]} Qxe7 {[%emt 0:00:30]} 16. dxc5 {
[%emt 0:00:30]} Qxc5 {[%emt 0:00:30]} 17. Rc1 {[%emt 0:00:30]} Qe7 {[%emt 0:00:
00]} 18. Qc2 {[%emt 0:00:30]} O-O {[%emt 0:00:30]} 19. Qc5 {[%emt 0:00:30]}
Qxc5 {[%emt 0:00:30]} 20. Rxc5 {[%emt 0:00:30]} Rfd8 {[%emt 0:00:30]} 21. Bf1 {
[%emt 0:00:30]} Nc6 {[%emt 0:00:30]} 22. Rec1 {[%emt 0:00:30]} Rac8 {[%emt 0:
00:00]} 23. h3 {[%emt 0:00:30]} Nb8 {[%emt 0:00:30]} 24. Rxc8 {[%emt 0:00:30]}
Rxc8 {[%emt 0:00:30]} 25. Rxc8+ {[%emt 0:00:30]} Bxc8 {[%emt 0:00:30]} 26. Ne5
{[%emt 0:00:30]} Kf8 {[%emt 0:00:30]} 27. Nd3 {[%emt 0:00:30]} Nc6 {[%emt 0:00:
00]} 28. Nc5 {[%emt 0:00:30]} Nb8 {[%emt 0:00:30]} 29. Nd3 {[%emt 0:00:30]} Nc6
{[%emt 0:00:30]} 30. Nc5 {[%emt 0:00:30]} Nb8 {[%emt 0:00:30]} 31. Nd3 {
[%emt 0:00:30]} Nc6 {[%emt 0:00:30]} 1/2-1/2

[Event "44th Chess Olympiad Women 2022"]
[Site "Chennai"]
[Date "2022.07.31"]
[Round "3.6"]
[White "Beydullayeva, Govhar"]
[Black "Pavlidou, Ekaterini"]
[Result "1-0"]
[WhiteElo "2390"]
[BlackElo "2138"]
[Annotator "RC"]
[PlyCount "101"]
[EventDate "2022.??.??"]
[TimeControl "60"]

1. Nf3 {[%emt 0:00:05]} Nf6 {[%emt 0:01:37]} 2. c4 {[%emt 0:00:08]} e6 {
[%emt 0:01:01]} 3. Nc3 {[%emt 0:00:20]} d5 {[%emt 0:00:36]} 4. d4 {[%emt 0:00:
00]} h6 {[%emt 0:00:11]} 5. Bf4 {[%emt 0:05:43]} Bd6 {[%emt 0:01:31]} 6. Bxd6 {
[%emt 0:00:22]} Qxd6 {[%emt 0:00:12]} 7. c5 {[%emt 0:01:20]} Qe7 {[%emt 0:00:
00]} 8. e3 {[%emt 0:03:52]} O-O {[%emt 0:01:30]} 9. Be2 {[%emt 0:02:37]} c6 {
[%emt 0:03:16]} 10. b4 {[%emt 0:04:47]} Nfd7 {[%emt 0:09:36]} 11. e4 {[%emt 0:
00:00]} b6 {[%emt 0:10:19]} 12. O-O {[%emt 0:04:16]} Bb7 {[%emt 0:20:08]} 13.
Re1 {[%emt 0:10:07]} a5 {[%emt 0:16:02]} 14. a3 {[%emt 0:01:56]} dxe4 {[%emt 0:
00:00]} 15. Nxe4 {[%emt 0:00:38]} Na6 {[%emt 0:05:31]} 16. Nd6 {[%emt 0:07:01]}
Nf6 {[%emt 0:00:40]} 17. Qb3 {[%emt 0:03:01]} a4 {[%emt 0:01:24]} 18. Qc2 {
[%emt 0:05:08]} b5 {[%emt 0:00:06]} 19. Ne5 {[%emt 0:04:28]} Rad8 {[%emt 0:00:
00]} 20. Bf3 {[%emt 0:00:51]} Rxd6 {[%emt 0:00:57]} 21. cxd6 {[%emt 0:00:03]}
Qxd6 {[%emt 0:00:06]} 22. Rac1 {[%emt 0:03:01]} Rc8 {[%emt 0:02:12]} 23. Qd2 {
[%emt 0:07:48]} Nd5 {[%emt 0:03:30]} 24. Be4 {[%emt 0:05:16]} f6 {[%emt 0:00:
00]} 25. Nd3 {[%emt 0:02:25]} Nac7 {[%emt 0:02:07]} 26. Nc5 {[%emt 0:03:01]}
Ba8 {[%emt 0:00:17]} 27. Bb1 {[%emt 0:04:10]} Re8 {[%emt 0:02:56]} 28. Qc2 {
[%emt 0:01:20]} f5 {[%emt 0:00:10]} 29. Nd3 {[%emt 0:04:28]} Nf6 {[%emt 0:00:
00]} 30. Qc5 {[%emt 0:02:15]} Qd8 {[%emt 0:00:49]} 31. Ne5 {[%emt 0:01:19]}
Nfd5 {[%emt 0:00:39]} 32. Ba2 {[%emt 0:05:12]} Qg5 {[%emt 0:00:48]} 33. Nf3 {
[%emt 0:01:47]} Qf4 {[%emt 0:00:30]} 34. Qc2 {[%emt 0:01:37]} c5 {[%emt 0:00:
00]} 35. dxc5 {[%emt 0:00:36]} Qg4 {[%emt 0:00:33]} 36. Ne5 {[%emt 0:00:49]}
Qg5 {[%emt 0:00:10]} 37. c6 {[%emt 0:01:10]} Nf4 {[%emt 0:00:45]} 38. f3 {
[%emt 0:00:10]} Nfd5 {[%emt 0:00:20]} 39. Bxd5 {[%emt 0:01:10]} Nxd5 {[%emt 0:
00:00]} 40. Kh1 {[%emt 0:00:40]} Ne3 {[%emt 0:00:30]} 41. Qe2 {[%emt 0:30:41]}
f4 {[%emt 0:30:08]} 42. Ng4 {[%emt 0:00:00]} Nc4 {[%emt 0:00:00]} 43. Rxc4 {
[%emt 0:00:00]} bxc4 {[%emt 0:00:00]} 44. Qxc4 {[%emt 0:00:00]} Qd8 {[%emt 0:
00:00]} 45. b5 {[%emt 0:00:00]} Qd6 {[%emt 0:00:00]} 46. Qxa4 {[%emt 0:00:00]}
Rd8 {[%emt 0:00:00]} 47. Nf2 {[%emt 0:00:00]} Qc5 {[%emt 0:00:00]} 48. Ne4 {
[%emt 0:00:00]} Qb6 {[%emt 0:00:00]} 49. Qc4 {[%emt 0:00:00]} Qe3 {[%emt 0:00:
00]} 50. Qc1 {[%emt 0:00:00]} Qd3 {[%emt 0:00:00]} 51. b6 {[%emt 0:00:00]} 1-0

[Event "44th Chess Olympiad Women 2022"]
[Site "Chennai"]
[Date "2022.07.31"]
[Round "3.6"]
[White "Mammadzada, Gunay"]
[Black "Tsolakidou, Stavroula"]
[Result "1/2-1/2"]
[WhiteElo "2455"]
[BlackElo "2362"]
[Annotator "RC"]
[PlyCount "85"]
[EventDate "2022.??.??"]
[TimeControl "60"]

1. e4 {[%emt 0:00:04]} e5 {[%emt 0:00:06]} 2. Nf3 {[%emt 0:00:08]} Nc6 {
[%emt 0:00:07]} 3. Bb5 {[%emt 0:00:04]} a6 {[%emt 0:00:08]} 4. Ba4 {[%emt 0:00:
00]} Nf6 {[%emt 0:00:08]} 5. O-O {[%emt 0:00:29]} b5 {[%emt 0:00:06]} 6. Bb3 {
[%emt 0:00:04]} Bb7 {[%emt 0:00:09]} 7. Re1 {[%emt 0:00:44]} Bc5 {[%emt 0:00:
00]} 8. c3 {[%emt 0:00:10]} O-O {[%emt 0:00:13]} 9. d4 {[%emt 0:00:28]} Bb6 {
[%emt 0:00:14]} 10. Bg5 {[%emt 0:02:50]} h6 {[%emt 0:00:43]} 11. Bh4 {[%emt 0:
00:00]} d6 {[%emt 0:00:21]} 12. a4 {[%emt 0:05:12]} exd4 {[%emt 0:01:06]} 13.
cxd4 {[%emt 0:00:13]} g5 {[%emt 0:00:34]} 14. Nxg5 {[%emt 0:05:38]} hxg5 {
[%emt 0:00:09]} 15. Bxg5 {[%emt 0:00:04]} Nxd4 {[%emt 0:00:19]} 16. Bd5 {
[%emt 0:00:27]} Bxd5 {[%emt 0:01:18]} 17. exd5 {[%emt 0:02:25]} Nf5 {[%emt 0:
00:00]} 18. Qf3 {[%emt 0:10:43]} Nd4 {[%emt 0:01:27]} 19. Qg3 {[%emt 0:08:32]}
Nh5 {[%emt 0:02:25]} 20. Qh4 {[%emt 0:16:49]} Qd7 {[%emt 0:01:29]} 21. Be3 {
[%emt 0:03:59]} Rfe8 {[%emt 0:40:58]} 22. Qxh5 {[%emt 0:03:30]} Qf5 {[%emt 0:
00:00]} 23. Qxf5 {[%emt 0:02:27]} Nxf5 {[%emt 0:00:04]} 24. axb5 {[%emt 0:00:
00]} Nxe3 {[%emt 0:12:50]} 25. fxe3 {[%emt 0:00:18]} Bxe3+ {[%emt 0:01:57]} 26.
Kf1 {[%emt 0:12:05]} a5 {[%emt 0:05:49]} 27. Ra3 {[%emt 0:04:13]} Bb6 {[%emt 0:
00:00]} 28. Rg3+ {[%emt 0:01:37]} Kf8 {[%emt 0:00:17]} 29. Nc3 {[%emt 0:01:03]}
Rxe1+ {[%emt 0:10:16]} 30. Kxe1 {[%emt 0:00:03]} a4 {[%emt 0:00:34]} 31. h4 {
[%emt 0:06:39]} Bd4 {[%emt 0:00:05]} 32. Kd2 {[%emt 0:01:11]} Be5 {[%emt 0:00:
00]} 33. Rg4 {[%emt 0:00:55]} Ra5 {[%emt 0:09:07]} 34. Rc4 {[%emt 0:01:58]}
Bxc3+ {[%emt 0:01:28]} 35. Kxc3 {[%emt 0:00:06]} Rxb5 {[%emt 0:00:04]} 36. Rxc7
{[%emt 0:00:47]} Rb3+ {[%emt 0:00:08]} 37. Kc2 {[%emt 0:00:41]} Rg3 {[%emt 0:
00:00]} 38. Rc4 {[%emt 0:00:51]} Rxg2+ {[%emt 0:00:06]} 39. Kc3 {[%emt 0:00:56]
} Rg3+ {[%emt 0:00:17]} 40. Kc2 {[%emt 0:00:36]} Rg2+ {[%emt 0:00:32]} 41. Kc1
{[%emt 0:05:47]} Rg1+ {[%emt 0:00:05]} 42. Kc2 {[%emt 0:00:04]} Rg2+ {[%emt 0:
00:00]} 43. Kc1 {[%emt 0:02:01]} 1/2-1/2

[Event "44th Chess Olympiad Women 2022"]
[Site "Chennai"]
[Date "2022.07.31"]
[Round "3.6"]
[White "Markantonaki, Haritomeni"]
[Black "Mammadova, Gulnar"]
[Result "1/2-1/2"]
[WhiteElo "2154"]
[BlackElo "2380"]
[Annotator "RC"]
[PlyCount "113"]
[EventDate "2022.??.??"]
[TimeControl "60"]

1. e4 {[%emt 0:00:04]} e5 {[%emt 0:00:07]} 2. Nf3 {[%emt 0:00:18]} Nc6 {
[%emt 0:00:11]} 3. Nc3 {[%emt 0:00:46]} Nf6 {[%emt 0:00:15]} 4. d4 {[%emt 0:00:
00]} exd4 {[%emt 0:00:16]} 5. Nxd4 {[%emt 0:00:05]} Bb4 {[%emt 0:00:48]} 6.
Nxc6 {[%emt 0:00:42]} bxc6 {[%emt 0:00:05]} 7. Bd3 {[%emt 0:00:46]} d5 {
[%emt 0:01:10]} 8. exd5 {[%emt 0:00:17]} cxd5 {[%emt 0:00:19]} 9. O-O {[%emt 0:
00:00]} O-O {[%emt 0:00:05]} 10. h3 {[%emt 0:01:01]} c6 {[%emt 0:05:00]} 11.
Qf3 {[%emt 0:00:24]} Bd6 {[%emt 0:10:12]} 12. Bf4 {[%emt 0:05:11]} Rb8 {
[%emt 0:04:42]} 13. b3 {[%emt 0:05:58]} Rb4 {[%emt 0:05:33]} 14. Bxd6 {[%emt 0:
00:00]} Qxd6 {[%emt 0:00:17]} 15. Rfe1 {[%emt 0:00:19]} g6 {[%emt 0:08:47]} 16.
Rad1 {[%emt 0:10:54]} Kg7 {[%emt 0:07:27]} 17. Na4 {[%emt 0:10:19]} Be6 {
[%emt 0:06:18]} 18. c3 {[%emt 0:08:21]} Rb7 {[%emt 0:04:19]} 19. Qe3 {[%emt 0:
00:00]} Re7 {[%emt 0:03:45]} 20. Qd4 {[%emt 0:00:00]} Rfe8 {[%emt 0:02:32]} 21.
Nc5 {[%emt 0:02:15]} Bc8 {[%emt 0:01:50]} 22. Rxe7 {[%emt 0:02:41]} Qxe7 {
[%emt 0:02:10]} 23. b4 {[%emt 0:01:08]} Kg8 {[%emt 0:00:40]} 24. a4 {[%emt 0:
00:00]} Nh5 {[%emt 0:04:48]} 25. Kh2 {[%emt 0:07:56]} Qg5 {[%emt 0:02:05]} 26.
b5 {[%emt 0:05:21]} cxb5 {[%emt 0:04:36]} 27. axb5 {[%emt 0:00:22]} Nf4 {
[%emt 0:03:58]} 28. Bf1 {[%emt 0:00:15]} Re7 {[%emt 0:10:31]} 29. g3 {[%emt 0:
00:00]} Ne6 {[%emt 0:03:18]} 30. Qxd5 {[%emt 0:01:08]} Rc7 {[%emt 0:03:32]} 31.
Ne4 {[%emt 0:07:49]} Qxd5 {[%emt 0:00:37]} 32. Nf6+ {[%emt 0:00:13]} Kf8 {
[%emt 0:00:31]} 33. Nxd5 {[%emt 0:00:31]} Rd7 {[%emt 0:01:24]} 34. c4 {[%emt 0:
00:00]} Nc5 {[%emt 0:02:25]} 35. Ra1 {[%emt 0:01:34]} Kg7 {[%emt 0:02:27]} 36.
h4 {[%emt 0:01:58]} f5 {[%emt 0:00:15]} 37. Nb4 {[%emt 0:01:55]} Kf6 {[%emt 0:
00:00]} 38. Bg2 {[%emt 0:01:18]} h6 {[%emt 0:00:53]} 39. Nc6 {[%emt 0:00:30]}
a6 {[%emt 0:00:13]} 40. Nb8 {[%emt 0:00:34]} Rd6 {[%emt 0:00:34]} 41. Ra5 {
[%emt 0:06:43]} axb5 {[%emt 0:07:29]} 42. Rxb5 {[%emt 0:05:07]} Nd3 {[%emt 0:
00:00]} 43. f4 {[%emt 0:06:40]} Re6 {[%emt 0:03:55]} 44. Bd5 {[%emt 0:02:46]}
Re2+ {[%emt 0:00:40]} 45. Kg1 {[%emt 0:00:33]} g5 {[%emt 0:05:43]} 46. Rb6+ {
[%emt 0:00:57]} Kg7 {[%emt 0:01:37]} 47. Rc6 {[%emt 0:05:14]} g4 {[%emt 0:00:
00]} 48. Rc7+ {[%emt 0:00:29]} Kf6 {[%emt 0:00:10]} 49. Rxc8 {[%emt 0:04:28]}
Re1+ {[%emt 0:00:04]} 50. Kg2 {[%emt 0:01:04]} Re2+ {[%emt 0:00:05]} 51. Kg1 {
[%emt 0:00:04]} Re1+ {[%emt 0:00:02]} 52. Kh2 {[%emt 0:00:31]} Re2+ {[%emt 0:
00:00]} 53. Kh1 {[%emt 0:01:44]} Re1+ {[%emt 0:00:05]} 54. Kg2 {[%emt 0:00:39]}
Re2+ {[%emt 0:00:06]} 55. Kg1 {[%emt 0:00:30]} Re1+ {[%emt 0:00:06]} 56. Kh2 {
[%emt 0:00:09]} Re2+ {[%emt 0:00:05]} 57. Kg1 {[%emt 0:00:50]} 1/2-1/2

[Event "44th Chess Olympiad Women 2022"]
[Site "Chennai"]
[Date "2022.07.31"]
[Round "3.7"]
[White "Abrahamyan, Tatev"]
[Black "Mungunzul, Bat-Erdene"]
[Result "0-1"]
[WhiteElo "2291"]
[BlackElo "2163"]
[Annotator "RC"]
[PlyCount "115"]
[EventDate "2022.??.??"]
[TimeControl "60"]

1. e4 {[%emt 0:00:04]} e5 {[%emt 0:00:14]} 2. Bc4 {[%emt 0:00:13]} Nc6 {
[%emt 0:00:50]} 3. Nf3 {[%emt 0:00:24]} Bc5 {[%emt 0:00:24]} 4. O-O {[%emt 0:
00:00]} Nf6 {[%emt 0:00:27]} 5. d3 {[%emt 0:00:30]} h6 {[%emt 0:01:04]} 6. c3 {
[%emt 0:00:46]} d6 {[%emt 0:00:44]} 7. Nbd2 {[%emt 0:01:02]} O-O {[%emt 0:00:
00]} 8. h3 {[%emt 0:00:43]} a6 {[%emt 0:02:47]} 9. Bb3 {[%emt 0:01:35]} Re8 {
[%emt 0:03:12]} 10. Re1 {[%emt 0:00:44]} Be6 {[%emt 0:02:54]} 11. Bc2 {[%emt 0:
00:00]} d5 {[%emt 0:03:10]} 12. exd5 {[%emt 0:03:49]} Bxd5 {[%emt 0:02:27]} 13.
Ne4 {[%emt 0:03:30]} Nxe4 {[%emt 0:10:32]} 14. dxe4 {[%emt 0:00:45]} Be6 {
[%emt 0:00:30]} 15. Qe2 {[%emt 0:07:59]} Qf6 {[%emt 0:06:23]} 16. b4 {[%emt 0:
00:00]} Ba7 {[%emt 0:03:48]} 17. Be3 {[%emt 0:07:11]} Ne7 {[%emt 0:04:35]} 18.
Nh2 {[%emt 0:13:36]} Bxe3 {[%emt 0:05:51]} 19. Qxe3 {[%emt 0:01:27]} Ng6 {
[%emt 0:00:26]} 20. Ng4 {[%emt 0:06:24]} Qh4 {[%emt 0:05:53]} 21. Qf3 {[%emt 0:
00:00]} Rad8 {[%emt 0:04:23]} 22. Ne3 {[%emt 0:09:26]} Rd2 {[%emt 0:02:03]} 23.
Rad1 {[%emt 0:04:26]} Red8 {[%emt 0:03:04]} 24. Bb3 {[%emt 0:03:51]} Bxb3 {
[%emt 0:08:11]} 25. axb3 {[%emt 0:00:06]} R2d3 {[%emt 0:00:38]} 26. Qg4 {
[%emt 0:04:33]} Qxg4 {[%emt 0:08:25]} 27. hxg4 {[%emt 0:00:03]} Nf4 {[%emt 0:
00:00]} 28. Kf1 {[%emt 0:04:17]} c6 {[%emt 0:00:42]} 29. g3 {[%emt 0:00:43]}
Ne6 {[%emt 0:00:21]} 30. Rxd3 {[%emt 0:00:35]} Rxd3 {[%emt 0:00:09]} 31. Rc1 {
[%emt 0:00:07]} Rd2 {[%emt 0:00:33]} 32. Nc4 {[%emt 0:00:47]} Ra2 {[%emt 0:00:
00]} 33. Nxe5 {[%emt 0:00:14]} Ng5 {[%emt 0:00:11]} 34. Re1 {[%emt 0:00:43]} f6
{[%emt 0:05:48]} 35. Nc4 {[%emt 0:00:50]} Nf3 {[%emt 0:00:45]} 36. Rd1 {
[%emt 0:01:13]} Nh2+ {[%emt 0:01:51]} 37. Kg2 {[%emt 0:00:24]} Nxg4 {[%emt 0:
00:00]} 38. Rd2 {[%emt 0:00:10]} Rxd2 {[%emt 0:05:11]} 39. Nxd2 {[%emt 0:00:04]
} Kf8 {[%emt 0:01:54]} 40. f4 {[%emt 0:01:41]} Ke7 {[%emt 0:02:12]} 41. Kf3 {
[%emt 0:07:10]} h5 {[%emt 0:00:25]} 42. Ke2 {[%emt 0:05:44]} Ke6 {[%emt 0:00:
00]} 43. Nf3 {[%emt 0:01:37]} g6 {[%emt 0:00:44]} 44. Nd4+ {[%emt 0:05:05]} Kd6
{[%emt 0:01:02]} 45. Nf3 {[%emt 0:02:01]} Ke6 {[%emt 0:00:39]} 46. Ne1 {
[%emt 0:01:23]} Kd6 {[%emt 0:06:33]} 47. Nd3 {[%emt 0:00:28]} b6 {[%emt 0:00:
00]} 48. Nb2 {[%emt 0:01:20]} c5 {[%emt 0:02:55]} 49. Nd3 {[%emt 0:06:03]} cxb4
{[%emt 0:00:55]} 50. Nxb4 {[%emt 0:00:21]} a5 {[%emt 0:00:58]} 51. Nd5 {
[%emt 0:00:30]} b5 {[%emt 0:00:23]} 52. Kd3 {[%emt 0:01:26]} g5 {[%emt 0:02:42]
} 53. Ke2 {[%emt 0:02:31]} h4 {[%emt 0:01:03]} 54. gxh4 {[%emt 0:00:13]} gxh4 {
[%emt 0:00:19]} 55. Kf3 {[%emt 0:00:28]} h3 {[%emt 0:00:40]} 56. Nb6 {[%emt 0:
00:00]} h2 {[%emt 0:02:05]} 57. Kg2 {[%emt 0:00:01]} Ne3+ {[%emt 0:00:34]} 58.
Kxh2 {[%emt 0:00:08]} 0-1